bitfinex-derivatives/quotes_SOLF0:USTF0_20250818
["timestamp","ask_amount","ask_price","bid_price","bid_amount"]
[1755477273218,2.87,189.77,189.71,5.2676]
[1755477273414,2.87,189.77,189.7,3.0793176]
[1755477273615,2.87,189.77,189.71,1.12]
[1755477273821,2.87,189.77,189.7,1.9593176]
[1755477274115,2.87,189.77,189.7,7.2271176]
[1755477275111,2.87,189.77,189.7,1.9593176]
[1755477276408,2.87,189.77,189.68,1.12]
[1755477278417,2.87,189.77,189.66,3.0793176]
[1755477278614,2.87,189.75,189.63,3.0793176]
[1755477278920,2.87,189.73,189.64,1.12]
[1755477279214,2.87,189.73,189.63,1.9593176]
[1755477279420,2.87,189.73,189.66,1.9593176]
[1755477279623,2.87,189.73,189.67,1.12]
[1755477280015,2.87,189.73,189.66,1.9593176]
[1755477280817,2.87,189.73,189.65,1.12]
[1755477281020,2.87,189.73,189.64,1.9593176]
[1755477281614,3.78164918,189.72,189.64,1.9593176]
[1755477281924,2.87,189.71,189.64,1.9593176]
[1755477282225,2.87,189.71,189.61,3.0793176]
[1755477282818,2.87,189.71,189.62,1.12]
[1755477283015,2.87,189.71,189.64,1.9593176]
[1755477283218,2.87,189.71,189.65,1.12]
[1755477283619,2.87,189.71,189.64,1.9593176]
[1755477284824,2.87,189.71,189.63,1.12]
[1755477285126,2.87,189.71,189.61,1.9593176]
[1755477285722,2.87,189.71,189.61,8.3495176]
[1755477285922,2.87,189.71,189.61,3.0793176]
[1755477287222,2.87,189.71,189.61,8.3495176]
[1755477288326,2.87,189.71,189.62,5.2701]
[1755477288629,2.87,189.71,189.62,6.3901]
[1755477289131,2.87,189.71,189.64,1.12]
[1755477296134,2.87,189.71,189.62,3.0793176]
[1755477297533,2.87,189.71,189.63,1.12]
[1755477298033,2.87,189.71,189.63,6.3898]
[1755477298235,2.87,189.71,189.64,1.12]
[1755477300434,2.99,189.79,189.69,1.12]
[1755477300636,362.69697728,189.88,189.69,1.12]
[1755477300637,2.99,189.77,189.69,1.12]
[1755477301038,2.99,189.77,189.7,6.3879]
[1755477301437,2.99,189.77,189.7,1.12]
[1755477301938,2.99,189.77,189.69,1.12]
[1755477302341,2.99,189.77,189.66,1.12]
[1755477302538,1.9593176,189.75,189.64,1.12]
[1755477302739,1.9593176,189.75,189.62,1.9593176]
[1755477302740,3.79593411,189.74,189.62,1.12]
[1755477302941,6.78593411,189.73,189.62,1.12]
[1755477303142,2.99,189.74,189.63,1.12]
[1755477303339,2.99,189.72,189.63,1.12]
[1755477303645,2.99,189.72,189.65,1.12]
[1755477304032,2.99,189.72,189.68,1.12]
[1755477304236,2.99,189.77,189.68,1.12]
[1755477304540,2.99,189.75,189.68,1.12]
[1755477304735,2.99,189.75,189.67,1.9593176]
[1755477304940,2.99,189.75,189.65,1.12]
[1755477305543,2.99,189.73,189.65,1.12]
[1755477307243,1.9593176,189.78,189.69,1.12]
[1755477307444,2.99,189.76,189.69,1.12]
[1755477307641,2.99,189.74,189.69,1.12]
[1755477309140,2.99,189.73,189.67,1.9593176]
[1755477309340,1.9593176,189.83,189.72,1.12]
[1755477309535,2.99,189.81,189.74,1.12]
[1755477309735,2.99,189.81,189.76,1.9593176]
[1755477309937,7.65296633,189.9,189.79,1.12]
[1755477310238,2.99,189.82,189.8,1.12]
[1755477310742,2.99,189.81,189.79,3.0793176]
[1755477311140,2.99,189.82,189.79,3.0793176]
[1755477311335,2.99,189.81,189.79,3.0793176]
[1755477311541,2.99,189.8,189.79,1.9593176]
[1755477311741,2.99,189.9,189.79,1.9593176]
[1755477312044,2.99,189.88,189.79,1.9593176]
[1755477312240,2.99,189.86,189.79,1.9593176]
[1755477313146,3.79353018,189.85,189.77,1.9593176]
[1755477313442,3.79224491,189.84,189.74,1.9593176]
[1755477313635,8.59697728,189.93,189.74,1.9593176]
[1755477313636,2.99,189.82,189.74,1.9593176]
[1755477315043,2.99,189.82,189.74,3.0793176]
[1755477315246,2.99,189.82,189.74,1.9593176]
[1755477316541,2.99,189.82,189.72,1.12]
[1755477316848,2.99,189.82,189.7,5.2678]
[1755477316849,2.99,189.8,189.7,1.9593176]
[1755477317049,2.99,189.78,189.69,1.12]
[1755477317639,2.99,189.78,189.71,1.12]
[1755477318844,2.99,189.78,189.73,1.9593176]
[1755477319050,2.99,189.78,189.75,1.13]
[1755477319352,2.97,189.84,189.77,1.13]
[1755477319546,1.9593176,189.9,189.79,1.9593176]
[1755477319753,2.97,189.88,189.79,3.0893176]
[1755477319948,2.97,189.86,189.79,1.9593176]
[1755477321147,2.97,189.86,189.8,1.13]
[1755477321347,2.97,189.86,189.82,1.9593176]
[1755477321546,2.97,189.86,189.84,1.13]
[1755477322050,2.97,189.86,189.82,1.9593176]
[1755477322051,2.97,189.96,189.85,1.9593176]
[1755477322351,2.97,189.94,189.85,3.0893176]
[1755477322653,2.97,189.92,189.85,1.13]
[1755477322854,2.97,189.92,189.86,3.0893176]
[1755477323057,2.97,189.91,189.89,1.9593176]
[1755477323254,2.97,189.94,189.91,1.13]
[1755477323555,2.97,190.0,189.9,1.13]
[1755477324451,0.03662358,189.97,189.91,1.13]
[1755477324646,0.03662358,189.97,189.9,5.2621]
[1755477324851,2.97,189.95,189.92,1.13]
[1755477325048,0.03662358,189.97,189.93,1.13]
[1755477325049,3.00662358,189.97,189.93,1.13]
[1755477325247,3.00662358,189.97,189.89,1.13]
[1755477327246,3.00662358,189.97,189.87,1.13]
[1755477327444,3.00662358,189.97,189.84,3.31769176]
[1755477327645,2.97,189.97,189.84,6.3939]
[1755477328054,2.97,189.97,189.85,1.13]
[1755477328455,0.03318762,189.92,189.85,1.13]
[1755477328662,3.00318762,189.92,189.85,1.13]
[1755477329057,2.97,189.91,189.84,1.13]
[1755477329654,2.97,189.91,189.83,353.92]
[1755477330063,2.97,189.91,189.82,1.13]
[1755477330262,2.97,189.91,189.8,3.31769176]
[1755477330463,2.97,189.91,189.81,1.13]
[1755477330659,2.97,189.91,189.84,5.264]
[1755477330860,2.97,189.91,189.81,1.13]
[1755477331463,2.97,189.91,189.8,3.31769176]
[1755477331774,2.97,189.87,189.81,1.13]
[1755477332470,0.03674915,189.88,189.81,1.13]
[1755477332764,2.97,189.87,189.81,1.13]
[1755477333358,0.03674915,189.88,189.81,1.13]
[1755477333766,0.03674915,189.88,189.85,1.13]
[1755477334166,0.03674915,189.88,189.86,1.13]
[1755477334360,0.03674915,189.88,189.87,1.13]
[1755477334966,0.03674915,189.88,189.8,3.31769176]
[1755477335267,0.03674915,189.88,189.84,1.13]
[1755477335460,2.97,189.85,189.82,1.13]
[1755477335660,2.97,189.87,189.8,3.31769176]
[1755477336062,2.97,189.87,189.8,8.58279176]
[1755477336363,2.97,189.87,189.81,1.13]
[1755477336664,0.03674915,189.88,189.86,1.13]
[1755477337461,2.97,189.87,189.83,1.13]
[1755477337666,2.97,189.87,189.81,1.13]
[1755477338066,2.97,189.87,189.8,3.31769176]
[1755477338269,0.03674915,189.88,189.81,1.13]
[1755477338872,0.03674915,189.88,189.84,5.2638]
[1755477339076,3.00674915,189.88,189.85,1.13]
[1755477339462,0.03674915,189.88,189.85,1.13]
[1755477339667,2.97,189.87,189.84,5.264]
[1755477339862,2.97,189.87,189.82,1.13]
[1755477340063,2.97,189.87,189.8,3.31769176]
[1755477340471,2.97,189.87,189.81,1.13]
[1755477340671,2.97,189.87,189.83,5.2641]
[1755477340867,2.97,189.87,189.81,1.13]
[1755477342572,0.03674915,189.88,189.81,1.13]
[1755477342768,0.03674915,189.88,189.84,3.31769176]
[1755477342967,0.03674915,189.88,189.86,1.13]
[1755477343267,2.97,189.94,189.87,1.13]
[1755477343570,2.97,189.94,189.89,1.09]
[1755477343773,2.97,189.93,189.9,1.09]
[1755477343971,2.97,189.95,189.91,1.09]
[1755477344174,2.97,189.95,189.89,1.09]
[1755477344375,2.97,189.95,189.91,1.95504888]
[1755477344572,2.97,189.94,189.92,5.2616]
[1755477344771,2.97,189.96,189.92,1.09]
[1755477344976,2.97,189.98,189.94,3.04504888]
[1755477345175,2.97,189.96,189.94,1.95504888]
[1755477345879,2.97,189.96,189.94,3.04504888]
[1755477346080,2.97,189.96,189.95,5.261]
[1755477346276,2.97,190.06,189.94,1.09]
[1755477346578,2.97,190.04,189.93,0.03970607]
[1755477346778,2.97,190.02,189.94,5.2612]
[1755477346977,2.97,190.02,189.97,0.0372245]
[1755477352274,3.99902787,190.01,189.97,0.0372245]
[1755477352480,2.95,190.0,189.97,0.0372245]
[1755477354879,2.95,190.06,189.97,0.0372245]
[1755477355082,2.95,190.04,189.97,0.0372245]
[1755477355273,2.95,190.02,189.97,0.0372245]
[1755477355473,2.95,190.01,189.97,1.1272245]
[1755477355680,2.95,190.0,189.97,1.1272245]
[1755477355880,2.95,190.0,189.97,1.09]
[1755477356185,2.95,190.0,189.97,6.3843108]
[1755477356384,2.95,190.1,189.97,6.3843108]
[1755477356585,2.95,190.08,189.97,6.3843108]
[1755477356885,2.95,190.06,189.98,5.2602]
[1755477357084,2.95,190.04,190.01,0.03528096]
[1755477357881,2.95,190.1,190.01,0.03528096]
[1755477358085,2.95,190.08,190.01,0.03528096]
[1755477358386,2.95,190.06,190.01,0.03528096]
[1755477358782,2.95,190.04,190.01,0.03528096]
[1755477362289,3.3163059,190.1,190.01,0.03528096]
[1755477362586,2.95,190.08,190.01,0.03528096]
[1755477362787,2.95,190.06,190.01,1.09]
[1755477363091,3.3163059,190.1,190.03,0.03628826]
[1755477363384,2.95,190.08,190.03,0.03628826]
[1755477363591,7.80633141,190.09,189.98,1.09]
[1755477363592,2.95,190.06,189.98,1.09]
[1755477363989,2.95,190.06,190.04,0.0397455]
[1755477364287,2.95,190.04,189.99,1.09]
[1755477364491,2.95,190.03,189.92,1.09]
[1755477364794,2.95,190.08,189.99,1.09]
[1755477364999,3.3163059,190.09,189.91,3.3163059]
[1755477365000,4.01395897,190.07,190.0,1.1254495]
[1755477365193,2.95,190.06,190.0,1.09]
[1755477365387,2.95,190.06,190.0,6.3496]
[1755477365582,2.95,190.06,190.02,0.03453935]
[1755477367687,4.01590926,190.05,190.02,0.03453935]
[1755477367885,4.01580435,190.04,190.02,0.03453935]
[1755477368096,2.95,190.03,189.95,1.09]
[1755477368393,2.95,190.02,189.89,1.95497709]
[1755477368601,2.95,189.99,189.92,1.09]
[1755477368899,2.95,189.99,189.9,1.09]
[1755477369692,2.95,189.96,189.88,1.09]
[1755477369893,2.98573831,189.96,189.88,1.09]
[1755477370092,2.98573831,189.96,189.88,6.3529]
[1755477370293,2.98573831,189.96,189.86,353.76]
[1755477370494,2.98573831,189.96,189.86,354.85]
[1755477371294,2.95,189.93,189.85,5.2637]
[1755477371599,2.95,189.93,189.86,5.2634]
[1755477371800,2.95,189.93,189.84,136.51]
[1755477371998,0.03437237,189.91,189.85,1.09]
[1755477372501,0.03437237,189.91,189.88,5.2629]
[1755477372805,2.95,189.9,189.88,1.09]
[1755477373405,2.95,189.9,189.85,1.09]
[1755477373610,2.95,189.89,189.86,1.09]
[1755477373795,2.95,189.9,189.84,135.42]
[1755477373998,2.95,189.9,189.84,136.51]
[1755477375895,2.95,189.9,189.84,141.7738]
[1755477376508,2.95,189.9,189.84,136.51]
[1755477376901,2.95,189.9,189.85,5.2637]
[1755477377102,2.95,189.9,189.85,1.09]
[1755477378210,2.8,189.89,189.86,1.09]
[1755477378403,2.8,189.9,189.87,1.09]
[1755477378609,0.03437237,189.91,189.85,3.04497709]
[1755477378812,0.03437237,189.91,189.86,1.09]
[1755477379204,2.8,189.9,189.88,6.3528]
[1755477379513,0.03437237,189.91,189.89,1.09]
[1755477379910,0.03437237,189.91,189.89,5.2624]
[1755477380212,2.83437237,189.91,189.87,1.95497709]
[1755477380412,0.03437237,189.91,189.87,7.21807709]
[1755477380613,2.8,189.89,189.87,8.30807709]
[1755477381009,2.8,189.89,189.87,3.04497709]
[1755477381209,0.03437237,189.91,189.88,1.09]
[1755477381508,2.8,189.9,189.86,1.09]
[1755477381706,2.8,189.89,189.85,1.95497709]
[1755477381905,0.03437237,189.91,189.85,1.95497709]
[1755477382106,2.8,189.9,189.82,1.09]
[1755477382311,2.8,189.9,189.8,1.09]
[1755477382511,2.8,189.9,189.79,135.38]
[1755477382910,0.03614473,189.87,189.79,135.38]
[1755477383105,2.8,189.86,189.79,136.47]
[1755477383305,2.8,189.86,189.79,135.38]
[1755477385608,2.8,189.82,189.76,359.896]
[1755477385819,2.8,189.82,189.75,5.2665]
[1755477387218,2.8,189.82,189.74,1.95497709]
[1755477387419,2.8,189.82,189.74,3.04497709]
[1755477388010,2.8,189.82,189.75,5.2663]
[1755477389509,2.8,189.82,189.74,3.04497709]
[1755477389820,2.8,189.82,189.75,1.09]
[1755477390822,2.8,189.82,189.77,1.09]
[1755477391121,2.8,189.82,189.78,1.09]
[1755477393223,0.03456531,189.83,189.79,6.3553]
[1755477393422,2.8,189.82,189.8,1.09]
[1755477394912,2.83456531,189.83,189.81,5.2647]
[1755477395126,0.03456531,189.83,189.82,1.09]
[1755477395317,2.83456531,189.83,189.81,1.09]
[1755477395518,0.03456531,189.83,189.8,1.95497709]
[1755477395920,0.03456531,189.83,189.82,1.09]
[1755477396220,0.03456531,189.83,189.82,6.3545]
[1755477397920,2.8,189.87,189.85,5.2634]
[1755477398521,2.8,189.94,189.85,5.2634]
[1755477398815,2.8,189.94,189.84,7.21887709]
[1755477399012,2.8,189.94,189.88,0.03636675]
[1755477400415,4.75497709,189.94,189.88,0.03636675]
[1755477400620,2.8,189.93,189.88,0.03636675]
[1755477403125,2.8,189.9,189.81,1.95497709]
[1755477403525,2.8,189.9,189.81,3.07497709]
[1755477404132,2.8,189.9,189.83,5.2641]
[1755477405125,0.03800213,189.88,189.8,1.95497709]
[1755477405436,2.83800213,189.88,189.81,1.12]
[1755477406137,2.83800213,189.88,189.83,5.2642]
[1755477406335,2.8,189.87,189.84,1.12]
[1755477406535,2.8,189.87,189.85,1.12]
[1755477407935,2.93800213,189.88,189.86,1.13]
[1755477408534,0.03800213,189.88,189.86,1.13]
[1755477408736,2.9,189.87,189.86,1.13]
[1755477408937,0.03800213,189.88,189.85,5.2636]
[1755477409244,0.03800213,189.88,189.87,1.13]
[1755477409433,2.9,189.87,189.86,1.95497709]
[1755477409633,2.9,189.87,189.83,1.95497709]
[1755477409837,2.9,189.95,189.83,1.95497709]
[1755477410038,0.03803923,189.88,189.8,3.08497709]
[1755477410341,2.9,189.87,189.81,1.13]
[1755477410740,0.03357615,189.86,189.81,1.13]
[1755477410940,2.9,189.84,189.82,1.13]
[1755477411339,2.9,189.85,189.83,1.13]
[1755477411535,0.03357615,189.86,189.83,1.95497709]
[1755477411742,0.03357615,189.86,189.84,1.13]
[1755477412039,0.03357615,189.86,189.85,6.3936]
[1755477412640,0.03357615,189.86,189.83,3.08497709]
[1755477412838,2.9,189.84,189.83,1.95497709]
[1755477414643,2.9,189.84,189.83,7.21917709]
[1755477415044,2.9,189.84,189.83,8.34917709]
[1755477415240,0.03357615,189.86,189.83,1.95497709]
[1755477415446,0.03357615,189.86,189.85,1.13]
[1755477415745,2.93357615,189.86,189.83,1.95497709]
[1755477415934,2.93357615,189.86,189.84,6.3939]
[1755477416135,2.93357615,189.86,189.84,1.13]
[1755477416339,2.93357615,189.86,189.85,1.13]
[1755477416541,2.93357615,189.86,189.83,1.13]
[1755477416842,2.93357615,189.86,189.85,5.2636]
[1755477417141,0.03357615,189.86,189.82,1.13]
[1755477417442,2.9,189.84,189.83,5.2642]
[1755477417640,2.9,189.84,189.83,6.3942]
[1755477417838,2.93357615,189.86,189.83,1.13]
[1755477418038,2.93357615,189.86,189.84,5.2637]
[1755477418745,2.93357615,189.86,189.84,6.3937]
[1755477418934,2.93357615,189.86,189.85,5.2636]
[1755477419946,0.03357615,189.86,189.85,6.3936]
[1755477420344,2.9,189.99,189.86,1.13]
[1755477420644,2.9,189.97,189.9,1.13]
[1755477420949,2.9,189.95,189.93,1.13]
[1755477421350,2.9,189.95,189.94,5.2611]
[1755477421551,2.9,189.95,189.89,3.32000112]
[1755477421552,2.9,190.03,189.9,1.13]
[1755477421853,2.9,190.01,189.93,1.13]
[1755477423246,2.9,190.01,189.86,1.13]
[1755477423646,7.80876257,190.0,189.86,1.13]
[1755477423952,2.9,189.98,189.86,1.13]
[1755477424150,2.9,189.98,189.84,138.42000112]
[1755477424151,2.9,189.98,189.91,5.2619]
[1755477424352,2.9,189.98,189.89,1.13]
[1755477424645,2.9,189.98,189.92,5.2615]
[1755477424844,2.9,189.98,189.89,1.13]
[1755477425554,2.9,189.98,189.92,5.2615]
[1755477425851,2.9,189.98,189.9,1.13]
[1755477426049,2.9,189.98,189.88,4.45000112]
[1755477426549,2.9,189.98,189.91,5.262]
[1755477426947,2.9,189.98,189.88,4.45000112]
[1755477427648,2.9,189.98,189.92,5.2616]
[1755477428653,2.9,189.98,189.86,1.13]
[1755477429748,2.9,189.98,189.88,5.2629]
[1755477430051,2.9,189.96,189.86,1.13]
[1755477430442,2.9,189.96,189.9,5.2623]
[1755477431254,2.9,189.96,189.89,5.2626]
[1755477431755,2.9,189.96,189.88,1.13]
[1755477433345,2.9,189.96,189.9,1.13]
[1755477433660,2.9,189.96,189.87,4.45000112]
[1755477433856,2.9,189.96,189.85,1.13]
[1755477434050,2.9,189.96,189.85,4.45000112]
[1755477434247,2.9,189.96,189.85,1.13]
[1755477434448,2.9,189.94,189.83,1.13]
[1755477434652,2.9,189.94,189.84,5.2639]
[1755477434952,2.9,189.94,189.83,1.13]
[1755477435247,2.9,189.94,189.84,5.264]
[1755477436953,4.06075661,189.93,189.81,4.45000112]
[1755477437155,3.32000112,189.99,189.82,1.13]
[1755477437156,2.9,189.98,189.82,1.13]
[1755477437359,2.9,189.96,189.82,1.13]
[1755477437562,2.9,189.94,189.84,5.264]
[1755477437859,2.9,189.94,189.82,1.13]
[1755477437860,2.99,189.92,189.82,1.13]
[1755477438457,2.99,189.92,189.83,1.13]
[1755477438961,2.99,189.92,189.85,5.2637]
[1755477439456,2.99,189.92,189.83,1.13]
[1755477440449,2.99,189.92,189.8,1.95674689]
[1755477440657,7.86246259,189.91,189.8,3.08674689]
[1755477440959,2.99,189.9,189.8,3.08674689]
[1755477441263,2.99,189.9,189.81,5.2648]
[1755477441460,2.99,189.9,189.8,3.08674689]
[1755477441660,2.99,189.9,189.81,1.13]
[1755477442549,2.99,189.9,189.84,1.13]
[1755477443048,2.99,189.9,189.83,1.95674689]
[1755477443660,2.99,189.9,189.8,1.13]
[1755477443862,2.99,189.88,189.78,1.95674689]
[1755477444664,2.99,189.88,189.78,7.22244689]
[1755477444864,2.99,189.88,189.79,1.13]
[1755477445060,2.99,189.88,189.82,1.13]
[1755477445862,2.99,189.88,189.79,1.13]
[1755477446264,2.99,189.88,189.8,5.2649]
[1755477446757,2.99,189.95,189.81,1.95674689]
[1755477447064,2.99,189.95,189.75,355.75674689]
[1755477447065,2.99,189.93,189.83,1.13]
[1755477447356,2.99,189.91,189.78,1.95674689]
[1755477447555,14.15748255,189.92,189.78,3.08674689]
[1755477447556,2.99,189.89,189.78,3.08674689]
[1755477448363,2.99,189.89,189.79,5.2652]
[1755477449765,2.99,189.87,189.76,3.08674689]
[1755477449957,2.99,189.85,189.76,3.08674689]
[1755477450158,2.99,189.85,189.76,1.13]
[1755477450762,2.99,189.85,189.74,1.95674689]
[1755477450960,2.99,189.85,189.79,0.03516411]
[1755477456767,1.95674689,189.83,189.79,0.03516411]
[1755477456960,2.99,189.82,189.79,0.03516411]
[1755477457166,4.94674689,189.8,189.71,1.12]
[1755477457366,2.99,189.79,189.71,1.12]
[1755477458377,2.99,189.79,189.64,1.95674689]
[1755477458378,0.03987508,189.77,189.74,1.16]
[1755477458661,0.03987508,189.77,189.73,1.95674689]
[1755477458662,0.03987508,189.77,189.75,1.16]
[1755477458867,0.03987508,189.77,189.73,1.95674689]
[1755477459067,0.03987508,189.77,189.74,1.16]
[1755477459266,0.03987508,189.77,189.72,5.2673]
[1755477459468,2.99,189.75,189.73,1.16]
[1755477459968,0.03975973,189.76,189.74,1.16]
[1755477460161,3.02975973,189.76,189.74,1.16]
[1755477460362,2.99,189.78,189.74,1.16]
[1755477460667,0.03773221,189.77,189.73,1.16]
[1755477460870,0.03773221,189.77,189.74,5.2668]
[1755477461064,2.99,189.79,189.76,1.16]
[1755477461261,2.99,189.84,189.76,1.16]
[1755477461463,0.03886503,189.77,189.76,1.16]
[1755477461668,2.99,189.8,189.76,1.16]
[1755477461871,2.99,189.8,189.77,1.16]
[1755477462069,0.03835028,189.78,189.77,1.16]
[1755477463172,0.03835028,189.78,189.75,5.2663]
[1755477463173,3.02835028,189.78,189.75,5.2663]
[1755477463376,3.02835028,189.78,189.76,1.16]
[1755477464465,2.99,189.77,189.76,1.16]
[1755477464669,2.99,189.77,189.74,6.4268]
[1755477464873,2.99,189.76,189.74,1.16]
[1755477465071,3.02835028,189.78,189.73,1.16]
[1755477465268,0.03835028,189.78,189.73,1.16]
[1755477465468,2.99,189.77,189.74,1.16]
[1755477465672,0.03835028,189.78,189.74,1.16]
[1755477465870,2.99,189.76,189.74,1.16]
[1755477466072,0.03835028,189.78,189.75,1.16]
[1755477466272,0.03835028,189.78,189.76,1.16]
[1755477466464,0.03835028,189.78,189.77,1.16]
[1755477466872,1.95674689,189.88,189.78,1.16]
[1755477467068,2.99,189.86,189.76,1.16]
[1755477467376,0.03926915,189.79,189.76,1.16]
[1755477467565,2.99,189.81,189.76,1.16]
[1755477467965,0.03447171,189.79,189.76,1.16]
[1755477468178,0.03447171,189.79,189.78,3.11674689]
[1755477468374,2.91,189.84,189.79,1.12]
[1755477468585,2.91,189.83,189.81,1.12]
[1755477469478,15.8,189.96,189.81,1.12]
[1755477469479,2.91,189.92,189.82,1.12]
[1755477469877,2.91,189.92,189.84,1.12]
[1755477470079,2.91,189.92,189.85,0.03499596]
[1755477470472,2.91,189.92,189.85,1.15499596]
[1755477471382,2.91,189.92,189.85,6.41879596]
[1755477472382,2.91,189.92,189.86,5.2635]
[1755477472684,2.91,189.92,189.86,1.12]
[1755477475783,2.91,189.92,189.85,0.03499596]
[1755477475975,4.86674689,189.92,189.85,0.03499596]
[1755477476284,2.91,189.9,189.85,0.03499596]
[1755477476775,7.65039562,189.97,189.85,0.03499596]
[1755477476776,1.95674689,189.89,189.85,0.03499596]
[1755477476974,2.91,189.87,189.75,8.38324689]
[1755477477181,2.91,189.85,189.75,3.11674689]
[1755477477369,2.91,189.85,189.75,1.95674689]
[1755477477677,2.91,189.85,189.76,1.16]
[1755477478272,0.0387822,189.82,189.76,1.16]
[1755477478477,2.91,189.81,189.76,1.16]
[1755477478873,2.91,189.81,189.74,1.95674689]
[1755477479075,2.91,189.81,189.75,1.16]
[1755477479278,0.0387822,189.82,189.77,7.22264689]
[1755477479473,2.9487822,189.82,189.78,1.16]
[1755477479678,2.9487822,189.82,189.79,1.16]
[1755477479884,2.91,189.81,189.79,1.16]
[1755477480085,2.91,189.81,189.77,3.11674689]
[1755477480286,2.91,189.8,189.78,1.16]
[1755477480585,2.9487822,189.82,189.8,1.16]
[1755477480784,0.0387822,189.82,189.8,1.95674689]
[1755477480981,2.9487822,189.82,189.8,1.95674689]
[1755477481181,2.91,189.81,189.8,1.95674689]
[1755477481484,0.0387822,189.82,189.8,3.11674689]
[1755477481683,2.91,189.81,189.78,1.16]
[1755477482088,2.91,189.8,189.78,1.16]
[1755477482780,2.91,189.79,189.78,1.16]
[1755477482988,0.03845255,189.81,189.77,1.95674689]
[1755477483193,2.94845255,189.81,189.79,1.16]
[1755477483686,2.91,189.8,189.77,1.95674689]
[1755477483982,2.91,189.8,189.78,1.16]
[1755477486985,2.91,189.8,189.78,6.4256]
[1755477487186,0.03845255,189.81,189.79,1.16]
[1755477487691,0.03845255,189.81,189.78,1.16]
[1755477487985,0.03845255,189.81,189.8,3.11674689]
[1755477488386,2.91,189.81,189.8,3.11674689]
[1755477488992,0.03544412,189.82,189.81,1.16]
[1755477489382,2.91,189.88,189.81,1.16]
[1755477489580,353.86,189.97,189.86,1.95674689]
[1755477489883,2.91,189.91,189.8,7.22164689]
[1755477490190,2.91,189.89,189.8,1.95674689]
[1755477490386,2.91,189.87,189.8,1.95674689]
[1755477491289,2.91,189.87,189.82,0.03433175]
[1755477491891,3.80594671,189.86,189.82,0.03433175]
[1755477492190,2.91,189.85,189.82,0.03433175]
[1755477496290,2.91,189.83,189.82,0.03433175]
[1755477496892,2.91,189.83,189.75,1.95674689]
[1755477497190,2.91,189.83,189.72,3.14674689]
[1755477497399,2.91,189.83,189.72,1.95674689]
[1755477497584,2.91,189.83,189.74,5.2667]
[1755477498188,0.03891679,189.8,189.75,5.2665]
[1755477498395,2.84,189.79,189.76,1.2]
[1755477498704,2.84,189.78,189.76,1.2]
[1755477499587,2.84,189.77,189.76,1.2]
[1755477499791,0.03891679,189.8,189.76,1.2]
[1755477499988,2.84,189.79,189.76,1.2]
[1755477500394,2.87891679,189.8,189.75,5.2664]
[1755477500596,2.87891679,189.8,189.77,1.2]
[1755477500796,0.03891679,189.8,189.77,1.2]
[1755477501094,2.84,189.79,189.77,1.2]
[1755477501301,2.84,189.79,189.76,1.95674689]
[1755477501901,0.03891679,189.8,189.76,1.95674689]
[1755477502103,2.84,189.77,189.76,1.95674689]